[Event "GrandPrix_30.05"]
[Site "Chess.com"]
[Date "2020.05.30"]
[Round "1"]
[White "Baron_von_Koenig"]
[Black "Gabrielian_Artur"]
[Result "1-0"]
[WhiteElo "2133"]
[BlackElo "2268"]
[TimeControl "600+2"]
[EndTime "8:15:13 PDT"]
[Termination "Baron_von_Koenig won by resignation"]

1. Nc3 {[%clk 0:10:01.9]} 1... c5 {[%clk 0:09:42.9]} 2. Nf3 {[%clk 0:10:02.1]}
2... Nc6 {[%clk 0:09:38.5]} 3. d4 {[%clk 0:10:02.6]} 3... cxd4 {[%clk
0:09:39.2]} 4. Nxd4 {[%clk 0:10:03.5]} 4... Nf6 {[%clk 0:09:37.4]} 5. Bg5 {[%clk
0:10:03.6]} 5... d6 {[%clk 0:09:34.8]} 6. Bxf6 {[%clk 0:10:03.2]} 6... gxf6
{[%clk 0:09:35.4]} 7. e3 {[%clk 0:10:02.4]} 7... f5 {[%clk 0:07:55.5]} 8. g3
{[%clk 0:09:59.9]} 8... e6 {[%clk 0:07:42.8]} 9. Bg2 {[%clk 0:09:59.7]} 9... d5
{[%clk 0:07:43.5]} 10. O-O {[%clk 0:09:58.1]} 10... Bg7 {[%clk 0:07:44.1]} 11.
Nce2 {[%clk 0:09:50.9]} 11... Qb6 {[%clk 0:07:37.5]} 12. Rb1 {[%clk 0:09:11.9]}
12... Bd7 {[%clk 0:07:36.5]} 13. c3 {[%clk 0:09:12.3]} 13... h5 {[%clk
0:06:56.8]} 14. h4 {[%clk 0:09:12]} 14... Be5 {[%clk 0:06:57]} 15. Nf3 {[%clk
0:08:16.3]} 15... Bc7 {[%clk 0:06:49.8]} 16. Nf4 {[%clk 0:08:11.9]} 16... Bxf4
{[%clk 0:06:46.2]} 17. exf4 {[%clk 0:08:12.2]} 17... f6 {[%clk 0:06:45.8]} 18.
Re1 {[%clk 0:08:09.4]} 18... O-O-O {[%clk 0:06:31.5]} 19. b4 {[%clk 0:08:03.4]}
19... Kb8 {[%clk 0:06:27.7]} 20. a4 {[%clk 0:08:04]} 20... Qc7 {[%clk
0:06:11.8]} 21. a5 {[%clk 0:07:55.6]} 21... Rhg8 {[%clk 0:06:05.5]} 22. Nd4
{[%clk 0:06:34.4]} 22... Nxd4 {[%clk 0:06:03]} 23. Qxd4 {[%clk 0:06:34.9]} 23...
Rc8 {[%clk 0:05:35.5]} 24. Rec1 {[%clk 0:06:28.4]} 24... e5 {[%clk 0:05:30.1]}
25. fxe5 {[%clk 0:06:13.5]} 25... fxe5 {[%clk 0:05:30.9]} 26. Qxd5 {[%clk
0:06:14.9]} 26... f4 {[%clk 0:05:13.5]} 27. b5 {[%clk 0:05:03.8]} 27... fxg3
{[%clk 0:05:07.7]} 28. b6 {[%clk 0:05:03.9]} 28... gxf2+ {[%clk 0:04:57.8]} 29.
Kh1 {[%clk 0:04:58.4]} 29... axb6 {[%clk 0:04:06.5]} 30. axb6 {[%clk 0:04:57.4]}
1-0

[Event "GrandPrix_30.05"]
[Site "Chess.com"]
[Date "2020.05.30"]
[Round "1"]
[White "Iljin_Timofey"]
[Black "dosto07"]
[Result "1-0"]
[WhiteElo "2264"]
[BlackElo "1848"]
[TimeControl "600+2"]
[EndTime "8:15:14 PDT"]
[Termination "Iljin_Timofey won by resignation"]

1. d4 {[%clk 0:10:01.3]} 1... d5 {[%clk 0:09:58.2]} 2. c4 {[%clk 0:10:01.7]}
2... dxc4 {[%clk 0:09:58.6]} 3. e4 {[%clk 0:10:02.2]} 3... e5 {[%clk 0:09:58.5]}
4. Nf3 {[%clk 0:10:02.9]} 4... exd4 {[%clk 0:09:59.3]} 5. Bxc4 {[%clk
0:10:03.6]} 5... Nc6 {[%clk 0:10:00]} 6. Kf1 {[%clk 0:10:04.2]} 6... Be6 {[%clk
0:09:54.1]} 7. Bxe6 {[%clk 0:10:02.3]} 7... fxe6 {[%clk 0:09:54.2]} 8. g3 {[%clk
0:10:04.2]} 8... Qd7 {[%clk 0:09:49.1]} 9. Kg2 {[%clk 0:10:05.1]} 9... Nf6
{[%clk 0:09:47.1]} 10. Re1 {[%clk 0:09:53.9]} 10... Bc5 {[%clk 0:09:34]} 11.
Nbd2 {[%clk 0:09:51.3]} 11... O-O {[%clk 0:09:32.7]} 12. Nb3 {[%clk 0:09:27.8]}
12... Bb6 {[%clk 0:09:32.7]} 13. e5 {[%clk 0:08:58.9]} 13... Nd5 {[%clk
0:09:22.5]} 14. Kg1 {[%clk 0:08:08.5]} 14... Qf7 {[%clk 0:09:14.8]} 15. Kg2
{[%clk 0:07:43.4]} 15... Rad8 {[%clk 0:09:02.7]} 16. Bd2 {[%clk 0:07:29.6]}
16... h6 {[%clk 0:08:56.5]} 17. Rc1 {[%clk 0:07:27.6]} 17... Qh5 {[%clk
0:08:10.5]} 18. Nh4 {[%clk 0:07:20]} 18... Qxd1 {[%clk 0:07:57.8]} 19. Rcxd1
{[%clk 0:07:21.9]} 19... g5 {[%clk 0:07:43.1]} 20. Ng6 {[%clk 0:06:51]} 20...
Rf7 {[%clk 0:07:30.4]} 21. h4 {[%clk 0:06:52.9]} 21... Kg7 {[%clk 0:07:20.4]}
22. h5 {[%clk 0:06:52.8]} 22... Nde7 {[%clk 0:07:11.3]} 23. Nxe7 {[%clk
0:06:36.6]} 23... Nxe7 {[%clk 0:07:11.2]} 24. f4 {[%clk 0:06:09.6]} 24... gxf4
{[%clk 0:06:56.9]} 25. Bxf4 {[%clk 0:06:11.5]} 25... c5 {[%clk 0:06:49]} 26. Rc1
{[%clk 0:06:02.9]} 26... Rc8 {[%clk 0:06:46.3]} 27. Rf1 {[%clk 0:05:57.2]} 27...
Rff8 {[%clk 0:06:41]} 28. Nd2 {[%clk 0:05:30.7]} 28... Nd5 {[%clk 0:06:19.4]}
29. Nc4 {[%clk 0:05:30.5]} 29... Bc7 {[%clk 0:05:37.2]} 30. Nd2 {[%clk
0:05:29.3]} 30... Bd8 {[%clk 0:04:38.2]} 31. Bxh6+ {[%clk 0:05:14.6]} 31... Kxh6
{[%clk 0:04:37.7]} 32. Rxf8 {[%clk 0:05:16.5]} 32... Kg7 {[%clk 0:04:31.3]} 33.
Re8 {[%clk 0:05:05.2]} 33... Kf7 {[%clk 0:04:28.1]} 34. Rh8 {[%clk 0:05:01.9]}
34... Kg7 {[%clk 0:04:28.2]} 35. Re8 {[%clk 0:04:39.4]} 35... Kf7 {[%clk
0:04:22.9]} 36. h6 {[%clk 0:04:23]} 36... Kxe8 {[%clk 0:04:04.9]} 37. h7 {[%clk
0:04:23]} 37... Ne3+ {[%clk 0:03:58.2]} 38. Kf3 {[%clk 0:04:22.4]} 1-0

[Event "GrandPrix_30.05"]
[Site "Chess.com"]
[Date "2020.05.30"]
[Round "1"]
[White "mishanick"]
[Black "TheJoker64"]
[Result "1-0"]
[WhiteElo "2977"]
[BlackElo "2245"]
[TimeControl "600+2"]
[EndTime "8:15:27 PDT"]
[Termination "mishanick won by resignation"]

1. d4 {[%clk 0:09:57.4]} 1... Nf6 {[%clk 0:10:00.3]} 2. c4 {[%clk 0:09:58.5]}
2... g6 {[%clk 0:10:00]} 3. Nc3 {[%clk 0:09:59.3]} 3... Bg7 {[%clk 0:10:01.3]}
4. e4 {[%clk 0:10:00.5]} 4... d6 {[%clk 0:10:02.4]} 5. Be2 {[%clk 0:10:01.8]}
5... O-O {[%clk 0:10:02.3]} 6. Be3 {[%clk 0:10:02.6]} 6... c5 {[%clk 0:10:02.8]}
7. d5 {[%clk 0:10:03.8]} 7... e6 {[%clk 0:09:56.5]} 8. Nf3 {[%clk 0:10:05]} 8...
exd5 {[%clk 0:09:56.4]} 9. cxd5 {[%clk 0:10:06.9]} 9... b5 {[%clk 0:09:52.3]}
10. e5 {[%clk 0:10:07.1]} 10... dxe5 {[%clk 0:08:34.3]} 11. Bxc5 {[%clk
0:10:08.1]} 11... Re8 {[%clk 0:08:00.4]} 12. Bxb5 {[%clk 0:10:09.4]} 12... Bd7
{[%clk 0:07:48.2]} 13. Be2 {[%clk 0:10:09.9]} 13... Nh5 {[%clk 0:07:12.1]} 14.
Be3 {[%clk 0:09:24.1]} 14... Nf4 {[%clk 0:06:55.8]} 15. Bxf4 {[%clk 0:09:16.4]}
15... exf4 {[%clk 0:06:55.5]} 16. O-O {[%clk 0:09:18]} 16... Qb6 {[%clk
0:06:44.3]} 17. Qd2 {[%clk 0:09:18.7]} 17... Na6 {[%clk 0:06:40.7]} 18. Bxa6
{[%clk 0:08:11.1]} 18... Qxa6 {[%clk 0:06:40.6]} 19. Rfe1 {[%clk 0:07:58.5]}
19... Qb6 {[%clk 0:06:07.4]} 20. Rac1 {[%clk 0:07:03]} 20... Bg4 {[%clk
0:05:29.1]} 21. h3 {[%clk 0:06:40]} 21... Bxf3 {[%clk 0:05:17.7]} 22. gxf3
{[%clk 0:06:41.9]} 22... Rxe1+ {[%clk 0:04:41.5]} 23. Rxe1 {[%clk 0:06:42.2]}
23... Rd8 {[%clk 0:04:43.1]} 24. Rd1 {[%clk 0:05:44.6]} 24... Be5 {[%clk
0:04:18.5]} 25. b3 {[%clk 0:05:38.8]} 25... h6 {[%clk 0:04:13.6]} 26. Ne4 {[%clk
0:04:32.7]} 26... Qc7 {[%clk 0:03:51.1]} 27. d6 {[%clk 0:04:18.5]} 27... Qd7
{[%clk 0:03:23.9]} 28. Qd5 {[%clk 0:04:18.1]} 28... Qf5 {[%clk 0:03:24.4]} 29.
d7 {[%clk 0:04:10.1]} 29... Qg5+ {[%clk 0:02:54.2]} 30. Nxg5 {[%clk 0:04:10.2]}
1-0

[Event "GrandPrix_30.05"]
[Site "Chess.com"]
[Date "2020.05.30"]
[Round "1"]
[White "szachuspl"]
[Black "ValeriyGrinev"]
[Result "0-1"]
[WhiteElo "2369"]
[BlackElo "2127"]
[TimeControl "600+2"]
[EndTime "8:15:57 PDT"]
[Termination "ValeriyGrinev won by resignation"]

1. d4 {[%clk 0:10:00.9]} 1... Nf6 {[%clk 0:09:57.8]} 2. c4 {[%clk 0:09:55.3]}
2... c5 {[%clk 0:09:59.1]} 3. d5 {[%clk 0:09:50.6]} 3... e6 {[%clk 0:09:59.9]}
4. Nc3 {[%clk 0:09:50.5]} 4... exd5 {[%clk 0:10:00.6]} 5. cxd5 {[%clk
0:09:51.6]} 5... d6 {[%clk 0:10:02.2]} 6. Nf3 {[%clk 0:09:52]} 6... g6 {[%clk
0:10:03]} 7. Bf4 {[%clk 0:09:52.4]} 7... Bg7 {[%clk 0:10:02.5]} 8. e3 {[%clk
0:09:51.4]} 8... O-O {[%clk 0:10:02.4]} 9. Be2 {[%clk 0:09:41.2]} 9... Na6
{[%clk 0:10:02.3]} 10. Nd2 {[%clk 0:09:39.5]} 10... Nc7 {[%clk 0:10:01.8]} 11.
Nc4 {[%clk 0:09:37.3]} 11... b5 {[%clk 0:09:24.9]} 12. Nxd6 {[%clk 0:09:12.1]}
12... b4 {[%clk 0:09:24.2]} 13. Na4 {[%clk 0:08:53.7]} 13... Ncxd5 {[%clk
0:09:16.6]} 14. Bg3 {[%clk 0:08:39.3]} 14... h5 {[%clk 0:06:34.4]} 15. h3 {[%clk
0:08:30.2]} 15... Qe7 {[%clk 0:06:11]} 16. Bf3 {[%clk 0:07:38.2]} 16... Be6
{[%clk 0:06:01.2]} 17. e4 {[%clk 0:07:01.2]} 17... Nb6 {[%clk 0:04:04.2]} 18.
Nxc5 {[%clk 0:06:45.1]} 18... Bc4 {[%clk 0:03:37.1]} 19. b3 {[%clk 0:06:29.7]}
19... Nxe4 {[%clk 0:03:13]} 20. bxc4 {[%clk 0:03:13.1]} 20... Nxg3+ {[%clk
0:03:08.1]} 0-1

[Event "GrandPrix_30.05"]
[Site "Chess.com"]
[Date "2020.05.30"]
[Round "1"]
[White "bsnsun"]
[Black "MirMan90"]
[Result "1-0"]
[WhiteElo "1962"]
[BlackElo "2169"]
[TimeControl "600+2"]
[EndTime "8:16:17 PDT"]
[Termination "bsnsun won by resignation"]

1. Nf3 {[%clk 0:10:01.9]} 1... g6 {[%clk 0:10:00.2]} 2. d4 {[%clk 0:10:02.5]}
2... Bg7 {[%clk 0:10:01.8]} 3. c4 {[%clk 0:10:02.8]} 3... d6 {[%clk 0:10:01.6]}
4. g3 {[%clk 0:10:03.7]} 4... Nf6 {[%clk 0:10:02]} 5. Bg2 {[%clk 0:10:04.6]}
5... O-O {[%clk 0:10:03.3]} 6. Nc3 {[%clk 0:10:05.7]} 6... Nc6 {[%clk
0:10:03.6]} 7. O-O {[%clk 0:10:06.3]} 7... Bf5 {[%clk 0:10:04.8]} 8. Nh4 {[%clk
0:10:05.1]} 8... Bd7 {[%clk 0:10:01]} 9. Nf3 {[%clk 0:10:04.7]} 9... e5 {[%clk
0:10:01.2]} 10. dxe5 {[%clk 0:09:06.8]} 10... dxe5 {[%clk 0:10:01.3]} 11. h3
{[%clk 0:09:05.8]} 11... Qc8 {[%clk 0:09:47.4]} 12. Kh2 {[%clk 0:09:06.5]} 12...
Be6 {[%clk 0:09:46.2]} 13. Nd5 {[%clk 0:08:55.9]} 13... Rd8 {[%clk 0:09:21]} 14.
e4 {[%clk 0:08:36.9]} 14... Nxe4 {[%clk 0:08:33.7]} 15. Qe2 {[%clk 0:06:40.1]}
15... f5 {[%clk 0:08:11]} 16. Ng5 {[%clk 0:06:17.3]} 16... Nxg5 {[%clk
0:07:17.6]} 17. Bxg5 {[%clk 0:06:16.9]} 17... Rf8 {[%clk 0:07:18.5]} 18. Rad1
{[%clk 0:05:48.9]} 18... Rf7 {[%clk 0:07:07.9]} 19. b4 {[%clk 0:05:37]} 19...
Qf8 {[%clk 0:07:02.7]} 20. b5 {[%clk 0:05:35.6]} 20... Nb8 {[%clk 0:06:34.9]}
21. Nf4 {[%clk 0:04:31.2]} 21... Bc8 {[%clk 0:05:33.4]} 22. Rd8 {[%clk
0:04:30.3]} 22... exf4 {[%clk 0:05:23.9]} 23. Rxf8+ {[%clk 0:04:30.7]} 23...
Rxf8 {[%clk 0:05:24.6]} 24. Bxf4 {[%clk 0:04:29.2]} 24... Nd7 {[%clk 0:05:12.5]}
25. Bxc7 {[%clk 0:04:22.3]} 25... Nf6 {[%clk 0:05:12.6]} 26. Re1 {[%clk
0:03:58.4]} 26... Ne4 {[%clk 0:05:05.8]} 27. f3 {[%clk 0:03:37.8]} 27... Nc3
{[%clk 0:05:02.7]} 28. Qe7 {[%clk 0:03:36.9]} 28... Bf6 {[%clk 0:04:53.5]} 29.
Qc5 {[%clk 0:03:14.6]} 29... Bd7 {[%clk 0:04:45.1]} 30. Be5 {[%clk 0:03:08.4]}
30... Rae8 {[%clk 0:04:08.9]} 31. Bxf6 {[%clk 0:02:29.2]} 31... Rxe1 {[%clk
0:04:07.1]} 32. Bxc3 {[%clk 0:02:30.2]} 32... Re2 {[%clk 0:04:00.2]} 33. Qd4
{[%clk 0:02:30.3]} 1-0

[Event "GrandPrix_30.05"]
[Site "Chess.com"]
[Date "2020.05.30"]
[Round "1"]
[White "HElissalt"]
[Black "Lavrov_Maxim"]
[Result "0-1"]
[WhiteElo "1977"]
[BlackElo "2321"]
[TimeControl "600+2"]
[EndTime "8:16:19 PDT"]
[Termination "Lavrov_Maxim won by resignation"]

1. d4 {[%clk 0:09:59]} 1... Nf6 {[%clk 0:09:57.4]} 2. c4 {[%clk 0:09:54.5]} 2...
g6 {[%clk 0:09:57.7]} 3. Nc3 {[%clk 0:09:53.7]} 3... Bg7 {[%clk 0:09:56.4]} 4.
e4 {[%clk 0:09:54.4]} 4... d6 {[%clk 0:09:56.7]} 5. Be2 {[%clk 0:09:55]} 5...
O-O {[%clk 0:09:56.7]} 6. Be3 {[%clk 0:09:55.8]} 6... e5 {[%clk 0:09:48.2]} 7.
d5 {[%clk 0:09:56.1]} 7... Ne8 {[%clk 0:09:40.4]} 8. g4 {[%clk 0:09:56]} 8...
Na6 {[%clk 0:09:13]} 9. h4 {[%clk 0:09:48.1]} 9... f5 {[%clk 0:09:02.8]} 10.
gxf5 {[%clk 0:09:40.2]} 10... gxf5 {[%clk 0:09:03.1]} 11. exf5 {[%clk
0:09:11.8]} 11... Bxf5 {[%clk 0:09:00.4]} 12. Nf3 {[%clk 0:09:10.5]} 12... Nc5
{[%clk 0:07:41.2]} 13. h5 {[%clk 0:08:09.2]} 13... Kh8 {[%clk 0:07:29.7]} 14.
Nh4 {[%clk 0:07:50.3]} 14... Be4 {[%clk 0:06:23.3]} 15. f3 {[%clk 0:06:49.5]}
15... Bf6 {[%clk 0:06:08.1]} 16. Bf2 {[%clk 0:06:43.4]} 16... Bg5 {[%clk
0:05:53.5]} 17. Nxe4 {[%clk 0:04:46]} 17... Nxe4 {[%clk 0:05:52.3]} 18. fxe4
{[%clk 0:04:46.4]} 18... Rxf2 {[%clk 0:05:52.9]} 19. Kxf2 {[%clk 0:04:47.5]}
19... Bxh4+ {[%clk 0:05:53.9]} 20. Ke3 {[%clk 0:04:49]} 20... c6 {[%clk
0:05:36.4]} 21. Qg1 {[%clk 0:04:33.7]} 21... cxd5 {[%clk 0:05:09.2]} 22. exd5
{[%clk 0:04:18.9]} 22... Qb6+ {[%clk 0:04:38.1]} 23. Kd3 {[%clk 0:04:17.8]}
23... Bf2 {[%clk 0:04:35.4]} 24. Qg4 {[%clk 0:04:16.1]} 24... Nf6 {[%clk
0:04:33.9]} 25. Qh3 {[%clk 0:03:55.9]} 25... Qxb2 {[%clk 0:04:26.4]} 26. Bf3
{[%clk 0:03:07.2]} 26... e4+ {[%clk 0:04:20.6]} 27. Bxe4 {[%clk 0:03:07.8]}
27... Nxe4 {[%clk 0:04:16.9]} 0-1

[Event "GrandPrix_30.05"]
[Site "Chess.com"]
[Date "2020.05.30"]
[Round "1"]
[White "temus_galaktionov"]
[Black "wnstop"]
[Result "1-0"]
[WhiteElo "2629"]
[BlackElo "2172"]
[TimeControl "600+2"]
[EndTime "8:16:29 PDT"]
[Termination "temus_galaktionov won by resignation"]

1. d4 {[%clk 0:10:01.9]} 1... Nf6 {[%clk 0:09:55.2]} 2. Nf3 {[%clk 0:10:03]}
2... g6 {[%clk 0:09:52.7]} 3. c4 {[%clk 0:10:03.8]} 3... Bg7 {[%clk 0:09:53]} 4.
Nc3 {[%clk 0:10:05.7]} 4... O-O {[%clk 0:09:53.3]} 5. e4 {[%clk 0:10:06.6]} 5...
d6 {[%clk 0:09:54.4]} 6. Be2 {[%clk 0:10:07.8]} 6... e5 {[%clk 0:09:54.7]} 7.
O-O {[%clk 0:10:09]} 7... Nbd7 {[%clk 0:09:36.3]} 8. Be3 {[%clk 0:10:07.7]} 8...
Re8 {[%clk 0:09:36.4]} 9. dxe5 {[%clk 0:10:07.7]} 9... dxe5 {[%clk 0:09:35.9]}
10. b4 {[%clk 0:10:05.6]} 10... Ng4 {[%clk 0:09:22.6]} 11. Bg5 {[%clk
0:10:05.9]} 11... f6 {[%clk 0:09:23.7]} 12. Bd2 {[%clk 0:10:02]} 12... c6 {[%clk
0:08:57.2]} 13. Qc1 {[%clk 0:09:40.5]} 13... f5 {[%clk 0:08:26]} 14. c5 {[%clk
0:09:41]} 14... Nf8 {[%clk 0:07:41]} 15. Ng5 {[%clk 0:09:41.8]} 15... f4 {[%clk
0:06:43.5]} 16. Nf3 {[%clk 0:09:06.8]} 16... h6 {[%clk 0:06:08.1]} 17. Rd1
{[%clk 0:09:05.5]} 17... Qe7 {[%clk 0:06:02.6]} 18. Na4 {[%clk 0:08:44.6]} 18...
g5 {[%clk 0:05:19]} 19. Bc3 {[%clk 0:08:44.4]} 19... Ng6 {[%clk 0:05:15.2]} 20.
Nb2 {[%clk 0:08:32.7]} 20... Nf6 {[%clk 0:05:12.4]} 21. Rd6 {[%clk 0:08:24.2]}
21... g4 {[%clk 0:04:41.2]} 22. Nd2 {[%clk 0:08:23.9]} 22... Kh7 {[%clk
0:03:36.2]} 23. Nd3 {[%clk 0:08:07.7]} 23... Bd7 {[%clk 0:03:08.3]} 24. f3
{[%clk 0:07:56.1]} 24... h5 {[%clk 0:02:56.3]} 25. Nc4 {[%clk 0:07:54.3]} 25...
gxf3 {[%clk 0:02:19.3]} 26. gxf3 {[%clk 0:07:52]} 26... Bh3 {[%clk 0:01:40.9]}
27. Bf1 {[%clk 0:07:28.8]} 27... Bxf1 {[%clk 0:01:39.5]} 28. Qxf1 {[%clk
0:07:30.7]} 28... Nd7 {[%clk 0:01:38.4]} 29. Kh1 {[%clk 0:07:30.2]} 29... b5
{[%clk 0:01:32.6]} 30. Na5 {[%clk 0:06:38.7]} 30... Ndf8 {[%clk 0:00:36.4]} 31.
Nxc6 {[%clk 0:06:30.7]} 31... Qh4 {[%clk 0:00:36.9]} 32. Qg2 {[%clk 0:06:27.2]}
32... Re6 {[%clk 0:00:24.6]} 33. Rxe6 {[%clk 0:06:11.8]} 33... Nxe6 {[%clk
0:00:26.5]} 34. Rg1 {[%clk 0:06:12.5]} 34... Nef8 {[%clk 0:00:25.9]} 35. Ndxe5
{[%clk 0:06:06.1]} 35... Bxe5 {[%clk 0:00:25.9]} 36. Nxe5 {[%clk 0:06:03.8]} 1-0

[Event "GrandPrix_30.05"]
[Site "Chess.com"]
[Date "2020.05.30"]
[Round "1"]
[White "fujiwara_hoga"]
[Black "Matibar"]
[Result "0-1"]
[WhiteElo "2117"]
[BlackElo "2498"]
[TimeControl "600+2"]
[EndTime "8:16:29 PDT"]
[Termination "Matibar won by resignation"]

1. d4 {[%clk 0:09:58.6]} 1... f5 {[%clk 0:09:48.7]} 2. c4 {[%clk 0:09:51.8]}
2... Nf6 {[%clk 0:09:48.4]} 3. Nc3 {[%clk 0:09:51.7]} 3... d6 {[%clk 0:09:48.2]}
4. g3 {[%clk 0:09:42]} 4... g6 {[%clk 0:09:47.9]} 5. Bg2 {[%clk 0:09:42.6]} 5...
Bg7 {[%clk 0:09:46.2]} 6. Nf3 {[%clk 0:09:42.1]} 6... O-O {[%clk 0:09:46.3]} 7.
O-O {[%clk 0:09:41.9]} 7... c6 {[%clk 0:09:47.5]} 8. b3 {[%clk 0:09:22.8]} 8...
Na6 {[%clk 0:09:21.9]} 9. Bb2 {[%clk 0:09:20.9]} 9... Bd7 {[%clk 0:09:23]} 10.
Qd3 {[%clk 0:08:48.4]} 10... Nb4 {[%clk 0:07:45.6]} 11. Qd2 {[%clk 0:08:42.1]}
11... Qe8 {[%clk 0:07:46.6]} 12. Rad1 {[%clk 0:08:27]} 12... h6 {[%clk 0:07:31]}
13. a3 {[%clk 0:07:51]} 13... Na6 {[%clk 0:07:31]} 14. b4 {[%clk 0:07:47.6]}
14... Qf7 {[%clk 0:07:24]} 15. Qd3 {[%clk 0:07:16]} 15... Nc7 {[%clk 0:06:59.3]}
16. Nd2 {[%clk 0:04:25.6]} 16... e5 {[%clk 0:05:31.7]} 17. e3 {[%clk 0:04:20.8]}
17... e4 {[%clk 0:05:22.9]} 18. Qe2 {[%clk 0:04:19.3]} 18... Rae8 {[%clk
0:05:18.9]} 19. Nb3 {[%clk 0:03:46.1]} 19... d5 {[%clk 0:05:04.7]} 20. cxd5
{[%clk 0:03:27.8]} 20... cxd5 {[%clk 0:04:56.2]} 21. b5 {[%clk 0:03:15.3]} 21...
g5 {[%clk 0:04:53.9]} 22. a4 {[%clk 0:02:18.7]} 22... f4 {[%clk 0:04:54.3]} 23.
Qc2 {[%clk 0:02:18.8]} 23... f3 {[%clk 0:04:49.3]} 24. Bh1 {[%clk 0:02:19.4]}
24... Qh5 {[%clk 0:03:52.5]} 25. Rfe1 {[%clk 0:02:01.9]} 25... Ng4 {[%clk
0:03:49.8]} 0-1

[Event "GrandPrix_30.05"]
[Site "Chess.com"]
[Date "2020.05.30"]
[Round "1"]
[White "N4700000"]
[Black "Vnebo"]
[Result "0-1"]
[WhiteElo "2286"]
[BlackElo "2126"]
[TimeControl "600+2"]
[EndTime "8:16:30 PDT"]
[Termination "Vnebo won by resignation"]

1. e4 {[%clk 0:10:01.2]} 1... c5 {[%clk 0:09:53.3]} 2. Nf3 {[%clk 0:10:01.1]}
2... d6 {[%clk 0:09:51.9]} 3. Bb5+ {[%clk 0:10:01.5]} 3... Bd7 {[%clk
0:09:52.2]} 4. c4 {[%clk 0:10:02.3]} 4... Nc6 {[%clk 0:09:41.5]} 5. O-O {[%clk
0:09:58.3]} 5... g6 {[%clk 0:09:37]} 6. d4 {[%clk 0:09:55.9]} 6... cxd4 {[%clk
0:09:37.1]} 7. Nxd4 {[%clk 0:09:57.8]} 7... Bg7 {[%clk 0:09:37.2]} 8. Be3 {[%clk
0:09:52.6]} 8... Nf6 {[%clk 0:09:34.8]} 9. f3 {[%clk 0:09:52.3]} 9... a6 {[%clk
0:09:24.7]} 10. Bxc6 {[%clk 0:09:51]} 10... bxc6 {[%clk 0:09:14.4]} 11. c5
{[%clk 0:09:44.3]} 11... e5 {[%clk 0:08:44.7]} 12. Nb3 {[%clk 0:09:26.5]} 12...
d5 {[%clk 0:08:43.8]} 13. Bg5 {[%clk 0:09:14.9]} 13... O-O {[%clk 0:08:23.6]}
14. Nc3 {[%clk 0:09:08.5]} 14... d4 {[%clk 0:07:57.6]} 15. Na4 {[%clk
0:09:05.9]} 15... h6 {[%clk 0:07:37.9]} 16. Bh4 {[%clk 0:09:02.4]} 16... Be6
{[%clk 0:07:29.8]} 17. Nb6 {[%clk 0:09:00.7]} 17... Ra7 {[%clk 0:06:52.1]} 18.
Na5 {[%clk 0:08:58.9]} 18... Qc7 {[%clk 0:06:49]} 19. Qa4 {[%clk 0:08:42.3]}
19... Nd7 {[%clk 0:06:31.4]} 20. Be7 {[%clk 0:08:16.8]} 20... Nxb6 {[%clk
0:05:30.9]} 21. cxb6 {[%clk 0:08:14.5]} 21... Qxb6 {[%clk 0:05:28.1]} 22. Bxf8
{[%clk 0:08:09]} 22... Bxf8 {[%clk 0:05:30]} 23. b3 {[%clk 0:07:56.7]} 23... c5
{[%clk 0:03:35.9]} 24. Nc4 {[%clk 0:07:53.5]} 24... Qc7 {[%clk 0:03:32.9]} 25.
Qa5 {[%clk 0:07:38.9]} 25... Qxa5 {[%clk 0:03:07.9]} 26. Nxa5 {[%clk 0:07:38.3]}
26... Rc7 {[%clk 0:03:08.7]} 27. Rac1 {[%clk 0:07:36.5]} 27... h5 {[%clk
0:02:56.5]} 28. Rc2 {[%clk 0:07:26.9]} 28... Bh6 {[%clk 0:02:37.3]} 29. Rd1
{[%clk 0:07:25.2]} 29... Kf8 {[%clk 0:02:17.9]} 30. Nc4 {[%clk 0:06:40.7]} 30...
f6 {[%clk 0:02:16.4]} 31. g3 {[%clk 0:06:11.1]} 31... Ke7 {[%clk 0:01:47.6]} 32.
Kf2 {[%clk 0:06:10.6]} 32... g5 {[%clk 0:01:42]} 33. Nb2 {[%clk 0:05:53.9]}
33... g4 {[%clk 0:01:40.5]} 34. Nd3 {[%clk 0:05:53.3]} 34... Be3+ {[%clk
0:01:34.1]} 35. Kf1 {[%clk 0:05:44.6]} 35... gxf3 {[%clk 0:01:28.5]} 36. Rxc5
{[%clk 0:05:24.4]} 36... Rxc5 {[%clk 0:01:21.3]} 37. Nxc5 {[%clk 0:05:26.3]}
37... Bh3+ {[%clk 0:01:22.2]} 38. Ke1 {[%clk 0:05:26.6]} 38... f2+ {[%clk
0:01:23.6]} 39. Ke2 {[%clk 0:05:21.1]} 39... Bg4+ {[%clk 0:01:23.9]} 0-1

[Event "GrandPrix_30.05"]
[Site "Chess.com"]
[Date "2020.05.30"]
[Round "1"]
[White "Evgeny81"]
[Black "SergeyVashchilov"]
[Result "1-0"]
[WhiteElo "2405"]
[BlackElo "2075"]
[TimeControl "600+2"]
[EndTime "8:16:46 PDT"]
[Termination "Evgeny81 won by resignation"]

1. d4 {[%clk 0:10:01.1]} 1... d5 {[%clk 0:10:00.5]} 2. c4 {[%clk 0:10:01.6]}
2... e6 {[%clk 0:10:00.8]} 3. Nf3 {[%clk 0:10:01.8]} 3... Nf6 {[%clk 0:10:01.2]}
4. g3 {[%clk 0:10:02.6]} 4... Be7 {[%clk 0:10:01]} 5. Bg2 {[%clk 0:10:03.4]}
5... O-O {[%clk 0:09:59.2]} 6. O-O {[%clk 0:10:04.3]} 6... dxc4 {[%clk
0:10:00.3]} 7. Qc2 {[%clk 0:10:03.8]} 7... a6 {[%clk 0:10:00.6]} 8. a4 {[%clk
0:10:04.6]} 8... c5 {[%clk 0:10:01.2]} 9. dxc5 {[%clk 0:09:57.6]} 9... Bxc5
{[%clk 0:10:03.1]} 10. Qxc4 {[%clk 0:09:50.1]} 10... b6 {[%clk 0:10:04]} 11. Ne5
{[%clk 0:08:57.2]} 11... Ra7 {[%clk 0:10:00.7]} 12. Nc3 {[%clk 0:08:37.3]} 12...
Qd4 {[%clk 0:08:40.9]} 13. Qxd4 {[%clk 0:07:25.7]} 13... Bxd4 {[%clk 0:08:41.5]}
14. Nf3 {[%clk 0:07:22.2]} 14... Bc5 {[%clk 0:08:24.4]} 15. Bf4 {[%clk
0:07:14.5]} 15... Nc6 {[%clk 0:07:52.4]} 16. Ne5 {[%clk 0:06:59.3]} 16... Nxe5
{[%clk 0:07:00.3]} 17. Bxe5 {[%clk 0:06:59.3]} 17... Bb7 {[%clk 0:05:06.3]} 18.
Bxf6 {[%clk 0:06:57.5]} 18... gxf6 {[%clk 0:04:44.4]} 19. Rac1 {[%clk
0:06:04.5]} 19... f5 {[%clk 0:04:16.1]} 20. Rfd1 {[%clk 0:05:45.3]} 20... Bxg2
{[%clk 0:04:11.1]} 21. Kxg2 {[%clk 0:05:46.7]} 21... Rb8 {[%clk 0:03:22.4]} 22.
e3 {[%clk 0:05:09.1]} 22... Kf8 {[%clk 0:03:19.8]} 23. Ne2 {[%clk 0:05:04.3]}
23... Ke7 {[%clk 0:03:18.5]} 24. b4 {[%clk 0:04:43.5]} 24... Bxb4 {[%clk
0:03:15.9]} 25. Nd4 {[%clk 0:04:44.3]} 25... Ba3 {[%clk 0:02:25.9]} 26. Nc6+
{[%clk 0:04:19.9]} 26... Kf6 {[%clk 0:02:26.5]} 27. Nxa7 {[%clk 0:04:08.3]}
27... Bxc1 {[%clk 0:02:15.2]} 28. Rxc1 {[%clk 0:04:09.7]} 28... b5 {[%clk
0:02:11]} 29. axb5 {[%clk 0:03:49.2]} 29... axb5 {[%clk 0:02:12.9]} 30. Rb1
{[%clk 0:03:48]} 30... b4 {[%clk 0:02:08.8]} 31. Nc6 {[%clk 0:03:48.1]} 31...
Rb6 {[%clk 0:02:08.8]} 32. Nxb4 {[%clk 0:03:48.7]} 32... e5 {[%clk 0:02:04.4]}
33. Nd5+ {[%clk 0:03:49.2]} 1-0